[Event "*** Titled Tuesday Blitz"]
[Site "Chess.com"]
[Date "2020.03.03"]
[Round "2"]
[White "IngOscarArdila"]
[Black "Terao90"]
[Result "1-0"]
[WhiteElo "2093"]
[BlackElo "2379"]
[TimeControl "180+1"]
[EndTime "13:19:06 PST"]
[Termination "IngOscarArdila won by checkmate"]

1. d4 {[%clk 0:02:59.3]} 1... Nf6 {[%clk 0:02:59.2]} 2. Nf3 {[%clk 0:02:58.3]}
2... e6 {[%clk 0:02:59.7]} 3. Bg5 {[%clk 0:02:55.7]} 3... d5 {[%clk 0:02:59.9]}
4. c4 {[%clk 0:02:53.6]} 4... h6 {[%clk 0:03:00.4]} 5. Bh4 {[%clk 0:02:53.4]}
5... Be7 {[%clk 0:03:00.2]} 6. Nc3 {[%clk 0:02:51.8]} 6... Ne4 {[%clk 0:03:00]}
7. Bxe7 {[%clk 0:02:49.5]} 7... Qxe7 {[%clk 0:03:00.9]} 8. Nxe4 {[%clk
0:02:48.1]} 8... dxe4 {[%clk 0:03:01]} 9. Nd2 {[%clk 0:02:48.3]} 9... f5 {[%clk
0:02:57.7]} 10. e3 {[%clk 0:02:47.3]} 10... O-O {[%clk 0:02:57.5]} 11. g3 {[%clk
0:02:45.5]} 11... c5 {[%clk 0:02:56.3]} 12. Nb3 {[%clk 0:02:40.7]} 12... Nd7
{[%clk 0:02:54.5]} 13. Bg2 {[%clk 0:02:37.3]} 13... b6 {[%clk 0:02:54.3]} 14.
O-O {[%clk 0:02:35.3]} 14... Bb7 {[%clk 0:02:54]} 15. Qd2 {[%clk 0:02:26.2]}
15... Rac8 {[%clk 0:02:53.2]} 16. Rac1 {[%clk 0:02:25.2]} 16... Rfd8 {[%clk
0:02:52.1]} 17. Rfd1 {[%clk 0:02:24]} 17... cxd4 {[%clk 0:02:46.3]} 18. exd4
{[%clk 0:02:23.3]} 18... Nf6 {[%clk 0:02:40.8]} 19. Qf4 {[%clk 0:02:14.1]} 19...
g5 {[%clk 0:02:40]} 20. Qe5 {[%clk 0:01:33.3]} 20... Ng4 {[%clk 0:02:39.7]} 21.
Qb5 {[%clk 0:01:31.8]} 21... Bc6 {[%clk 0:02:32.1]} 22. Qa6 {[%clk 0:01:31.5]}
22... Qc7 {[%clk 0:02:28.9]} 23. d5 {[%clk 0:01:24.1]} 23... Bb7 {[%clk
0:02:24.1]} 24. Qb5 {[%clk 0:01:24.1]} 24... a6 {[%clk 0:02:19.4]} 25. Qb4
{[%clk 0:01:23.6]} 25... Ne5 {[%clk 0:02:09.1]} 26. d6 {[%clk 0:01:20.1]} 26...
Qc6 {[%clk 0:02:06.5]} 27. Nd4 {[%clk 0:01:19.7]} 27... Qd7 {[%clk 0:02:03.8]}
28. Qxb6 {[%clk 0:01:15.4]} 28... Rb8 {[%clk 0:02:04]} 29. c5 {[%clk 0:01:13.1]}
29... Bd5 {[%clk 0:02:02.3]} 30. Qc7 {[%clk 0:01:12.9]} 30... Rxb2 {[%clk
0:02:00.7]} 31. Nxf5 {[%clk 0:00:32.9]} 31... exf5 {[%clk 0:01:44]} 32. Rxd5
{[%clk 0:00:32.4]} 32... Nd3 {[%clk 0:01:41.4]} 33. Qxd7 {[%clk 0:00:27.3]}
33... Rxd7 {[%clk 0:01:41.6]} 34. Rf1 {[%clk 0:00:27.4]} 34... Rc2 {[%clk
0:01:39.2]} 35. Rxf5 {[%clk 0:00:26.2]} 35... Rxc5 {[%clk 0:01:39.2]} 36. Bxe4
{[%clk 0:00:24.8]} 36... Ne5 {[%clk 0:01:28]} 37. f4 {[%clk 0:00:21.9]} 37...
gxf4 {[%clk 0:01:13.5]} 38. gxf4 {[%clk 0:00:21.9]} 38... Rxd6 {[%clk
0:00:56.8]} 39. fxe5 {[%clk 0:00:21.2]} 39... Rd2 {[%clk 0:00:55.6]} 40. Rf8+
{[%clk 0:00:20.5]} 40... Kg7 {[%clk 0:00:54.9]} 41. R1f7# {[%clk 0:00:20.6]} 1-0

[Event "*** Titled Tuesday Blitz"]
[Site "Chess.com"]
[Date "2020.03.03"]
[Round "2"]
[White "ama18"]
[Black "ElGasanov"]
[Result "0-1"]
[WhiteElo "2515"]
[BlackElo "2717"]
[TimeControl "180+1"]
[EndTime "13:19:07 PST"]
[Termination "ElGasanov won by resignation"]

1. e4 {[%clk 0:02:24.2]} 1... c5 {[%clk 0:02:58.6]} 2. Nf3 {[%clk 0:02:24]} 2...
Nc6 {[%clk 0:02:55.2]} 3. d4 {[%clk 0:02:24.2]} 3... cxd4 {[%clk 0:02:55.5]} 4.
Nxd4 {[%clk 0:02:25.1]} 4... Nf6 {[%clk 0:02:56]} 5. Nc3 {[%clk 0:02:24.7]} 5...
g6 {[%clk 0:02:56.6]} 6. Be3 {[%clk 0:02:20.7]} 6... Bg7 {[%clk 0:02:56.4]} 7.
f3 {[%clk 0:02:17.7]} 7... O-O {[%clk 0:02:54.5]} 8. Nb3 {[%clk 0:02:09.3]} 8...
a5 {[%clk 0:02:45.4]} 9. Bb5 {[%clk 0:01:57.7]} 9... d5 {[%clk 0:02:39]} 10.
exd5 {[%clk 0:01:56.2]} 10... Nb4 {[%clk 0:02:36.7]} 11. Bc4 {[%clk 0:01:52.5]}
11... a4 {[%clk 0:02:34.1]} 12. Nc5 {[%clk 0:01:34.1]} 12... a3 {[%clk
0:02:29.4]} 13. bxa3 {[%clk 0:01:27.8]} 13... Nbxd5 {[%clk 0:02:17.2]} 14. Nxd5
{[%clk 0:01:22.1]} 14... Nxd5 {[%clk 0:02:17]} 15. Bxd5 {[%clk 0:00:54.6]} 15...
Bxa1 {[%clk 0:02:16.1]} 16. Qxa1 {[%clk 0:00:41.4]} 16... Qxd5 {[%clk
0:02:15.1]} 17. Bh6 {[%clk 0:00:37.7]} 17... f6 {[%clk 0:02:07.5]} 18. Bxf8
{[%clk 0:00:36.3]} 18... Qxc5 {[%clk 0:01:55.7]} 19. Bh6 {[%clk 0:00:35.8]}
19... Bf5 {[%clk 0:01:48.8]} 20. Qb2 {[%clk 0:00:31.1]} 20... Rxa3 {[%clk
0:01:39.6]} 21. Bd2 {[%clk 0:00:27.4]} 21... Ra6 {[%clk 0:01:34.3]} 22. Kd1
{[%clk 0:00:23.6]} 22... Qf2 {[%clk 0:01:27.4]} 23. Qb3+ {[%clk 0:00:17.1]}
23... Be6 {[%clk 0:01:19]} 24. Qe3 {[%clk 0:00:17.1]} 24... Qxg2 {[%clk
0:01:18.3]} 25. Rg1 {[%clk 0:00:16.9]} 25... Qh3 {[%clk 0:01:18]} 26. Rg3 {[%clk
0:00:16.2]} 26... Qxh2 {[%clk 0:01:17]} 27. Rg1 {[%clk 0:00:13.8]} 27... Rd6
{[%clk 0:01:15.8]} 28. Kc1 {[%clk 0:00:13.3]} 28... Bf5 {[%clk 0:01:15.2]} 29.
Re1 {[%clk 0:00:12.7]} 29... e5 {[%clk 0:01:12.4]} 30. Re2 {[%clk 0:00:12.6]}
30... Qh1+ {[%clk 0:01:09.3]} 31. Re1 {[%clk 0:00:12.9]} 31... Qh4 {[%clk
0:01:09.9]} 32. Qb3+ {[%clk 0:00:12.6]} 32... Be6 {[%clk 0:01:03.1]} 33. Qxb7
{[%clk 0:00:13.5]} 33... Qd4 {[%clk 0:01:02.2]} 34. Qb4 {[%clk 0:00:08.5]} 34...
Qa1+ {[%clk 0:01:00.8]} 35. Qb1 {[%clk 0:00:07.3]} 35... Qxb1+ {[%clk
0:01:01.3]} 36. Kxb1 {[%clk 0:00:08.2]} 36... Rxd2 {[%clk 0:01:01.6]} 0-1

[Event "*** Titled Tuesday Blitz"]
[Site "Chess.com"]
[Date "2020.03.03"]
[Round "2"]
[White "tigra"]
[Black "Sergey85Rodchenkov"]
[Result "1-0"]
[WhiteElo "2773"]
[BlackElo "2557"]
[TimeControl "180+1"]
[EndTime "13:19:08 PST"]
[Termination "tigra won on time"]

1. e4 {[%clk 0:03:00]} 1... c5 {[%clk 0:02:57.7]} 2. Nf3 {[%clk 0:02:59.4]} 2...
e6 {[%clk 0:02:57.3]} 3. d4 {[%clk 0:02:57.7]} 3... cxd4 {[%clk 0:02:57.5]} 4.
Nxd4 {[%clk 0:02:58.6]} 4... a6 {[%clk 0:02:58]} 5. c4 {[%clk 0:02:56.5]} 5...
Qc7 {[%clk 0:02:56.2]} 6. Nc3 {[%clk 0:02:53.8]} 6... b6 {[%clk 0:02:53.4]} 7.
a3 {[%clk 0:02:52.7]} 7... Bb7 {[%clk 0:02:51.7]} 8. Be3 {[%clk 0:02:49.7]} 8...
Nf6 {[%clk 0:02:50.8]} 9. Qc2 {[%clk 0:02:41.1]} 9... Nc6 {[%clk 0:02:49.2]} 10.
Be2 {[%clk 0:02:39.5]} 10... Ne5 {[%clk 0:02:42.5]} 11. f3 {[%clk 0:02:32.4]}
11... Rc8 {[%clk 0:02:35.7]} 12. Rc1 {[%clk 0:02:06.8]} 12... Ng6 {[%clk
0:02:04.8]} 13. O-O {[%clk 0:02:02.3]} 13... Bd6 {[%clk 0:02:01.2]} 14. h3
{[%clk 0:01:45.3]} 14... Bh2+ {[%clk 0:01:30.8]} 15. Kh1 {[%clk 0:01:45.1]}
15... Nh5 {[%clk 0:01:31.2]} 16. Rfe1 {[%clk 0:01:45.2]} 16... Nh4 {[%clk
0:01:00.6]} 17. Bd3 {[%clk 0:01:35.3]} 17... Bf4 {[%clk 0:00:18.7]} 18. Qd2
{[%clk 0:01:30.8]} 18... g5 {[%clk 0:00:15.1]} 19. Nce2 {[%clk 0:01:27.7]} 19...
Ng6 {[%clk 0:00:13.3]} 20. b4 {[%clk 0:01:23.7]} 20... Bxe3 {[%clk 0:00:09.8]}
21. Qxe3 {[%clk 0:01:23.6]} 21... Nhf4 {[%clk 0:00:09.8]} 22. c5 {[%clk
0:01:16.7]} 22... b5 {[%clk 0:00:08.7]} 23. Nf5 {[%clk 0:01:02.1]} 23... exf5
{[%clk 0:00:06.5]} 24. exf5+ {[%clk 0:01:01.7]} 24... Kf8 {[%clk 0:00:07]} 25.
fxg6 {[%clk 0:01:01.4]} 25... hxg6 {[%clk 0:00:06.8]} 26. Nxf4 {[%clk
0:01:00.6]} 26... gxf4 {[%clk 0:00:06.2]} 27. Qd4 {[%clk 0:00:57.2]} 27... Kg8
{[%clk 0:00:04.8]} 28. Re7 {[%clk 0:00:51.3]} 1-0

[Event "*** Titled Tuesday Blitz"]
[Site "Chess.com"]
[Date "2020.03.03"]
[Round "2"]
[White "norwaytoadog"]
[Black "chegueps"]
[Result "1-0"]
[WhiteElo "2277"]
[BlackElo "2471"]
[TimeControl "180+1"]
[EndTime "13:19:09 PST"]
[Termination "norwaytoadog won by checkmate"]

1. e4 {[%clk 0:03:00.9]} 1... c5 {[%clk 0:02:56.5]} 2. Nf3 {[%clk 0:03:00.9]}
2... e6 {[%clk 0:02:56.9]} 3. d4 {[%clk 0:03:00.7]} 3... cxd4 {[%clk 0:02:57.8]}
4. Nxd4 {[%clk 0:03:00.8]} 4... Nf6 {[%clk 0:02:55.1]} 5. Nc3 {[%clk 0:03:01]}
5... Nc6 {[%clk 0:02:55.7]} 6. a3 {[%clk 0:02:42.4]} 6... d5 {[%clk 0:02:41.5]}
7. exd5 {[%clk 0:02:41.4]} 7... Nxd5 {[%clk 0:02:41.6]} 8. Bb5 {[%clk
0:02:39.9]} 8... Bd7 {[%clk 0:02:39.9]} 9. Nxd5 {[%clk 0:02:38.8]} 9... exd5
{[%clk 0:02:39.4]} 10. O-O {[%clk 0:02:35.7]} 10... Be7 {[%clk 0:02:39.3]} 11.
Re1 {[%clk 0:02:32.5]} 11... O-O {[%clk 0:02:34.3]} 12. Nxc6 {[%clk 0:02:30.5]}
12... bxc6 {[%clk 0:02:31]} 13. Bd3 {[%clk 0:02:30.2]} 13... Bf6 {[%clk
0:02:22.6]} 14. Qh5 {[%clk 0:02:13.3]} 14... g6 {[%clk 0:02:20.9]} 15. Qf3
{[%clk 0:02:13.3]} 15... Rb8 {[%clk 0:02:16.8]} 16. Rb1 {[%clk 0:02:04.2]} 16...
Bg7 {[%clk 0:01:49.3]} 17. c4 {[%clk 0:01:56.7]} 17... dxc4 {[%clk 0:01:18.3]}
18. Bxc4 {[%clk 0:01:56.2]} 18... Bf5 {[%clk 0:01:18.9]} 19. Ra1 {[%clk
0:01:51]} 19... Bxb2 {[%clk 0:01:08.8]} 20. Bxb2 {[%clk 0:01:45.2]} 20... Rxb2
{[%clk 0:01:09.7]} 21. Rad1 {[%clk 0:01:29.8]} 21... Qa5 {[%clk 0:01:07.4]} 22.
g4 {[%clk 0:01:20.6]} 22... Bc8 {[%clk 0:00:59.1]} 23. Re7 {[%clk 0:01:15.5]}
23... Be6 {[%clk 0:00:40.8]} 24. Rxe6 {[%clk 0:01:05.9]} 24... fxe6 {[%clk
0:00:41.7]} 25. Bxe6+ {[%clk 0:01:04.6]} 25... Kg7 {[%clk 0:00:21.6]} 26. Rd7+
{[%clk 0:01:04.4]} 26... Kh6 {[%clk 0:00:22.2]} 27. Qxf8+ {[%clk 0:00:58]} 27...
Kg5 {[%clk 0:00:22.4]} 28. f4+ {[%clk 0:00:50.6]} 28... Kh4 {[%clk 0:00:20.3]}
29. Qh6+ {[%clk 0:00:50]} 29... Qh5 {[%clk 0:00:20.2]} 30. gxh5 {[%clk
0:00:47.8]} 30... Rb1+ {[%clk 0:00:15.8]} 31. Kf2 {[%clk 0:00:47.3]} 31... Rb2+
{[%clk 0:00:16.7]} 32. Ke3 {[%clk 0:00:45.5]} 32... Rxh2 {[%clk 0:00:17.6]} 33.
hxg6+ {[%clk 0:00:44.6]} 33... Kg3 {[%clk 0:00:18.5]} 34. Qg5# {[%clk
0:00:43.8]} 1-0

[Event "*** Titled Tuesday Blitz"]
[Site "Chess.com"]
[Date "2020.03.03"]
[Round "2"]
[White "AndreyNeves"]
[Black "Maikrosoft63"]
[Result "0-1"]
[WhiteElo "2206"]
[BlackElo "2577"]
[TimeControl "180+1"]
[EndTime "13:19:10 PST"]
[Termination "Maikrosoft63 won by checkmate"]

1. d4 {[%clk 0:03:00.9]} 1... Nf6 {[%clk 0:02:59.5]} 2. c4 {[%clk 0:03:00.1]}
2... e6 {[%clk 0:02:59.3]} 3. Nc3 {[%clk 0:02:56.3]} 3... Bb4 {[%clk 0:02:58.5]}
4. e3 {[%clk 0:02:56.1]} 4... Bxc3+ {[%clk 0:02:58]} 5. bxc3 {[%clk 0:02:55.3]}
5... c5 {[%clk 0:02:58.6]} 6. Nf3 {[%clk 0:02:48.2]} 6... d6 {[%clk 0:02:58.5]}
7. Bd3 {[%clk 0:02:41.7]} 7... Nc6 {[%clk 0:02:58.2]} 8. O-O {[%clk 0:02:38.8]}
8... e5 {[%clk 0:02:57.7]} 9. d5 {[%clk 0:02:33.2]} 9... Ne7 {[%clk 0:02:57.2]}
10. e4 {[%clk 0:02:30.8]} 10... O-O {[%clk 0:02:56.5]} 11. Nh4 {[%clk
0:02:27.9]} 11... h6 {[%clk 0:02:45.8]} 12. a4 {[%clk 0:02:13.2]} 12... Ng6
{[%clk 0:02:39]} 13. Nxg6 {[%clk 0:02:08.6]} 13... fxg6 {[%clk 0:02:38.6]} 14.
f4 {[%clk 0:02:05.5]} 14... Qe7 {[%clk 0:02:16.1]} 15. Qe2 {[%clk 0:01:53.2]}
15... Bd7 {[%clk 0:02:11.6]} 16. Bd2 {[%clk 0:01:46.4]} 16... Rae8 {[%clk
0:01:59.6]} 17. fxe5 {[%clk 0:01:32.4]} 17... dxe5 {[%clk 0:01:58.2]} 18. a5
{[%clk 0:01:28]} 18... Rb8 {[%clk 0:01:54.4]} 19. Rab1 {[%clk 0:01:26.4]} 19...
Ne8 {[%clk 0:01:54]} 20. Rxf8+ {[%clk 0:01:23.2]} 20... Qxf8 {[%clk 0:01:54.9]}
21. Be3 {[%clk 0:01:20.5]} 21... Qd6 {[%clk 0:01:48.7]} 22. Qf2 {[%clk
0:01:17.2]} 22... b6 {[%clk 0:01:41.4]} 23. axb6 {[%clk 0:01:13.2]} 23... axb6
{[%clk 0:01:41.6]} 24. h3 {[%clk 0:01:07]} 24... Qc7 {[%clk 0:01:41.1]} 25. Qg3
{[%clk 0:01:00.4]} 25... g5 {[%clk 0:01:40.1]} 26. h4 {[%clk 0:00:58.7]} 26...
gxh4 {[%clk 0:01:39.3]} 27. Qxh4 {[%clk 0:00:58.7]} 27... Qd6 {[%clk 0:01:35.9]}
28. Rf1 {[%clk 0:00:56.3]} 28... Qg6 {[%clk 0:01:05.1]} 29. Be2 {[%clk 0:00:53]}
29... Nf6 {[%clk 0:01:01.4]} 30. Bd3 {[%clk 0:00:38.9]} 30... Ra8 {[%clk
0:00:57]} 31. Rf3 {[%clk 0:00:34.9]} 31... Ra1+ {[%clk 0:00:49.4]} 32. Kh2
{[%clk 0:00:34]} 32... Ng4+ {[%clk 0:00:48.9]} 33. Kg3 {[%clk 0:00:25.1]} 33...
Nxe3+ {[%clk 0:00:48.5]} 34. Kh2 {[%clk 0:00:23.4]} 34... Qxg2# {[%clk
0:00:47.4]} 0-1

[Event "*** Titled Tuesday Blitz"]
[Site "Chess.com"]
[Date "2020.03.03"]
[Round "2"]
[White "Rodalquilar"]
[Black "TheBigBadChessDad"]
[Result "1-0"]
[WhiteElo "2586"]
[BlackElo "2317"]
[TimeControl "180+1"]
[EndTime "13:19:14 PST"]
[Termination "Rodalquilar won on time"]

1. d4 {[%clk 0:03:00.9]} 1... d5 {[%clk 0:02:58.8]} 2. Bf4 {[%clk 0:03:00.2]}
2... c5 {[%clk 0:02:57.3]} 3. e3 {[%clk 0:02:59.8]} 3... cxd4 {[%clk 0:02:57.3]}
4. exd4 {[%clk 0:03:00.7]} 4... Nc6 {[%clk 0:02:57.8]} 5. Nf3 {[%clk 0:03:00.6]}
5... Bf5 {[%clk 0:02:52.2]} 6. Nbd2 {[%clk 0:02:59.1]} 6... e6 {[%clk
0:02:52.3]} 7. c3 {[%clk 0:02:57.9]} 7... Bd6 {[%clk 0:02:49.1]} 8. Bxd6 {[%clk
0:02:57.5]} 8... Qxd6 {[%clk 0:02:49.1]} 9. Be2 {[%clk 0:02:58.4]} 9... Nf6
{[%clk 0:02:43.9]} 10. O-O {[%clk 0:02:58.9]} 10... O-O {[%clk 0:02:43.5]} 11.
Re1 {[%clk 0:02:59.3]} 11... h6 {[%clk 0:02:42.2]} 12. a4 {[%clk 0:02:59.7]}
12... Ne4 {[%clk 0:02:35.5]} 13. Nxe4 {[%clk 0:02:56.7]} 13... Bxe4 {[%clk
0:02:35.5]} 14. a5 {[%clk 0:02:56.3]} 14... a6 {[%clk 0:02:30.4]} 15. b4 {[%clk
0:02:54.3]} 15... Bxf3 {[%clk 0:02:28.7]} 16. Bxf3 {[%clk 0:02:54.3]} 16... Na7
{[%clk 0:02:27.4]} 17. Re3 {[%clk 0:02:53.9]} 17... Rac8 {[%clk 0:02:22.8]} 18.
Be2 {[%clk 0:02:54.1]} 18... Nb5 {[%clk 0:02:18.2]} 19. Bxb5 {[%clk 0:02:51.6]}
19... axb5 {[%clk 0:02:18.2]} 20. Qd2 {[%clk 0:02:52.5]} 20... Rc4 {[%clk
0:02:15.5]} 21. Rae1 {[%clk 0:02:52.5]} 21... Rfc8 {[%clk 0:02:12.7]} 22. Rg3
{[%clk 0:02:52.7]} 22... Kh8 {[%clk 0:02:04.5]} 23. h4 {[%clk 0:02:52.6]} 23...
Qe7 {[%clk 0:01:54.1]} 24. h5 {[%clk 0:02:51.9]} 24... Qh4 {[%clk 0:01:50.7]}
25. Re5 {[%clk 0:02:51.6]} 25... R8c6 {[%clk 0:01:41]} 26. Rf3 {[%clk
0:02:49.6]} 26... Qe7 {[%clk 0:01:36.7]} 27. g3 {[%clk 0:02:45.2]} 27... Qc7
{[%clk 0:01:31.4]} 28. Ree3 {[%clk 0:02:39.8]} 28... Kg8 {[%clk 0:01:31.6]} 29.
Kg2 {[%clk 0:02:39.7]} 29... b6 {[%clk 0:01:26.7]} 30. axb6 {[%clk 0:02:38.4]}
30... Qxb6 {[%clk 0:01:26.9]} 31. g4 {[%clk 0:02:38.8]} 31... f6 {[%clk
0:01:25.2]} 32. Rg3 {[%clk 0:02:36.5]} 32... Qa6 {[%clk 0:01:21.6]} 33. f4
{[%clk 0:02:36.4]} 33... Qa4 {[%clk 0:01:18.6]} 34. g5 {[%clk 0:02:33.3]} 34...
fxg5 {[%clk 0:01:15]} 35. fxg5 {[%clk 0:02:33.6]} 35... hxg5 {[%clk 0:01:15.3]}
36. Rxg5 {[%clk 0:02:28.4]} 36... Rxb4 {[%clk 0:00:21.1]} 37. Reg3 {[%clk
0:02:02.4]} 37... Rc7 {[%clk 0:00:20.3]} 38. h6 {[%clk 0:02:02.5]} 38... Rbc4
{[%clk 0:00:13]} 39. Rxg7+ {[%clk 0:01:26]} 39... Rxg7 {[%clk 0:00:13]} 40.
Rxg7+ {[%clk 0:01:26.9]} 40... Kh8 {[%clk 0:00:11.3]} 41. Qf2 {[%clk 0:01:27]}
41... Rc8 {[%clk 0:00:08.3]} 42. Rg3 {[%clk 0:01:23.2]} 1-0

[Event "*** Titled Tuesday Blitz"]
[Site "Chess.com"]
[Date "2020.03.03"]
[Round "2"]
[White "JoakimVonAnd"]
[Black "davigator"]
[Result "1-0"]
[WhiteElo "2522"]
[BlackElo "2290"]
[TimeControl "180+1"]
[EndTime "13:19:14 PST"]
[Termination "JoakimVonAnd won by resignation"]

1. d4 {[%clk 0:03:00.9]} 1... Nf6 {[%clk 0:02:59.1]} 2. c4 {[%clk 0:03:00.1]}
2... e6 {[%clk 0:02:58.7]} 3. Nc3 {[%clk 0:02:58.6]} 3... Bb4 {[%clk 0:02:58.3]}
4. e3 {[%clk 0:02:55.9]} 4... O-O {[%clk 0:02:57]} 5. Bd3 {[%clk 0:02:55.5]}
5... c5 {[%clk 0:02:56.1]} 6. Nf3 {[%clk 0:02:53.5]} 6... Nc6 {[%clk 0:02:54.5]}
7. O-O {[%clk 0:02:52.1]} 7... Bxc3 {[%clk 0:02:52.5]} 8. bxc3 {[%clk
0:02:50.4]} 8... h6 {[%clk 0:02:51.1]} 9. e4 {[%clk 0:02:48.5]} 9... d6 {[%clk
0:02:49.1]} 10. Qe2 {[%clk 0:02:47.9]} 10... e5 {[%clk 0:02:48.3]} 11. d5 {[%clk
0:02:44]} 11... Ne7 {[%clk 0:02:47.6]} 12. Nh4 {[%clk 0:02:38.6]} 12... Ng6
{[%clk 0:02:47.2]} 13. Nxg6 {[%clk 0:02:36.9]} 13... fxg6 {[%clk 0:02:46.7]} 14.
h3 {[%clk 0:02:37.1]} 14... Kh7 {[%clk 0:02:45.8]} 15. f4 {[%clk 0:02:34.4]}
15... Bd7 {[%clk 0:02:43.9]} 16. g4 {[%clk 0:02:23.2]} 16... Qe7 {[%clk
0:02:41.5]} 17. Kh2 {[%clk 0:02:20.9]} 17... Rf7 {[%clk 0:02:37.8]} 18. f5
{[%clk 0:02:17.3]} 18... Raf8 {[%clk 0:02:35.3]} 19. Bd2 {[%clk 0:02:08.2]}
19... g5 {[%clk 0:02:30.4]} 20. Kg3 {[%clk 0:02:01.7]} 20... Ba4 {[%clk
0:02:28.8]} 21. Rab1 {[%clk 0:02:00.9]} 21... Qe8 {[%clk 0:02:26.2]} 22. Rh1
{[%clk 0:01:59.5]} 22... g6 {[%clk 0:02:20.5]} 23. h4 {[%clk 0:01:55.9]} 23...
gxh4+ {[%clk 0:02:19.2]} 24. Rxh4 {[%clk 0:01:55.4]} 24... Ng8 {[%clk
0:02:16.9]} 25. Rbh1 {[%clk 0:01:52.8]} 25... gxf5 {[%clk 0:02:13.3]} 26. Rxh6+
{[%clk 0:01:45]} 26... Nxh6 {[%clk 0:02:12.5]} 27. Rxh6+ {[%clk 0:01:45.9]}
27... Kg8 {[%clk 0:02:12.2]} 28. exf5 {[%clk 0:01:41.6]} 28... e4 {[%clk
0:02:11.9]} 29. Qh2 {[%clk 0:01:36.6]} 29... Qe5+ {[%clk 0:01:59.2]} 30. Bf4
{[%clk 0:01:35.7]} 30... Qxc3 {[%clk 0:01:59]} 31. Rg6+ {[%clk 0:01:21.2]} 31...
Rg7 {[%clk 0:01:57.6]} 32. Qh6 {[%clk 0:01:17.1]} 32... Qxd3+ {[%clk 0:01:53.9]}
33. Kh4 {[%clk 0:01:16]} 33... Rf7 {[%clk 0:01:50.7]} 34. f6 {[%clk 0:01:10.8]}
34... Rxg6 {[%clk 0:01:37.8]} 35. Qxg6+ {[%clk 0:01:09.4]} 35... Kf8 {[%clk
0:01:34.4]} 36. Bh6+ {[%clk 0:01:09.2]} 36... Ke8 {[%clk 0:01:34.1]} 37. Qg8+
{[%clk 0:01:09.1]} 37... Kd7 {[%clk 0:01:34.2]} 38. Qxf7+ {[%clk 0:01:09.7]}
38... Kc8 {[%clk 0:01:34.7]} 39. Qe7 {[%clk 0:01:01.9]} 39... Qf3 {[%clk
0:01:19.1]} 40. f7 {[%clk 0:00:59.1]} 40... Qh1+ {[%clk 0:00:44]} 41. Kg5 {[%clk
0:00:57.1]} 41... Qc1+ {[%clk 0:00:44.3]} 42. Kg6 {[%clk 0:00:57]} 42... Qf1
{[%clk 0:00:38.4]} 43. f8=Q+ {[%clk 0:00:56.5]} 43... Qxf8 {[%clk 0:00:37.2]}
44. Qxf8+ {[%clk 0:00:55.8]} 44... Kc7 {[%clk 0:00:37.3]} 45. Bf4 {[%clk
0:00:55.8]} 1-0

[Event "*** Titled Tuesday Blitz"]
[Site "Chess.com"]
[Date "2020.03.03"]
[Round "2"]
[White "kasparicy"]
[Black "Astaneh"]
[Result "1-0"]
[WhiteElo "2350"]
[BlackElo "2592"]
[TimeControl "180+1"]
[EndTime "13:19:15 PST"]
[Termination "kasparicy won by checkmate"]

1. e4 {[%clk 0:03:00.9]} 1... c6 {[%clk 0:02:13.1]} 2. d4 {[%clk 0:02:59.5]}
2... d5 {[%clk 0:02:14]} 3. f3 {[%clk 0:03:00.4]} 3... e6 {[%clk 0:02:13.7]} 4.
Nc3 {[%clk 0:02:59.9]} 4... Bb4 {[%clk 0:02:07]} 5. Bd3 {[%clk 0:02:53.6]} 5...
dxe4 {[%clk 0:02:02.1]} 6. fxe4 {[%clk 0:02:54.5]} 6... Qxd4 {[%clk 0:02:02.2]}
7. Nf3 {[%clk 0:02:54.6]} 7... Qc5 {[%clk 0:01:57.7]} 8. Bd2 {[%clk 0:02:51.3]}
8... Nf6 {[%clk 0:01:55]} 9. Qe2 {[%clk 0:02:47.5]} 9... e5 {[%clk 0:01:52.7]}
10. a3 {[%clk 0:02:46.7]} 10... Bxc3 {[%clk 0:01:52.6]} 11. Bxc3 {[%clk
0:02:47.6]} 11... Bg4 {[%clk 0:01:49.7]} 12. O-O-O {[%clk 0:02:43.9]} 12... Nbd7
{[%clk 0:01:49]} 13. h3 {[%clk 0:02:31.2]} 13... Bxf3 {[%clk 0:01:48.7]} 14.
gxf3 {[%clk 0:02:31.7]} 14... O-O-O {[%clk 0:01:48.8]} 15. Bb4 {[%clk
0:02:24.4]} 15... Qb6 {[%clk 0:01:48.3]} 16. Kb1 {[%clk 0:02:19.1]} 16... Nh5
{[%clk 0:01:41.1]} 17. Qg2 {[%clk 0:02:07.4]} 17... g6 {[%clk 0:01:40.3]} 18.
Bc4 {[%clk 0:01:55.1]} 18... a5 {[%clk 0:01:38.4]} 19. Bd6 {[%clk 0:01:52.4]}
19... f6 {[%clk 0:01:19.9]} 20. Qg4 {[%clk 0:01:32.5]} 20... Qe3 {[%clk
0:00:48.7]} 21. Rd3 {[%clk 0:01:20.1]} 21... Qf4 {[%clk 0:00:47.4]} 22. Qe6
{[%clk 0:01:18]} 22... Qh6 {[%clk 0:00:34.1]} 23. Ba6 {[%clk 0:00:28.9]} 23...
bxa6 {[%clk 0:00:17.9]} 24. Rb3 {[%clk 0:00:27.3]} 24... Qd2 {[%clk 0:00:08.9]}
25. Rb8# {[%clk 0:00:25.2]} 1-0